bitfinex-derivatives/quotes_ETHF0:USTF0_20251116
["timestamp","ask_amount","ask_price","bid_price","bid_amount"]
[1763264602134,0.238,3201.4,3201.3,4.28742094]
[1763264602736,0.238,3201.4,3201.3,4.04792094]
[1763264603034,0.238,3201.4,3201.3,3.2078]
[1763264604436,0.238,3201.4,3201.3,3.4473]
[1763264605337,0.84391797,3201.8,3201.3,3.4473]
[1763264606138,1.08191797,3201.8,3201.7,0.2395]
[1763264607734,0.238,3201.4,3201.3,3.2078]
[1763264608142,0.238,3201.4,3201.3,3.4473]
[1763264608741,0.84391797,3201.8,3201.3,3.4473]
[1763264609440,1.08131797,3201.8,3201.7,0.2416]
[1763264611140,0.84391797,3201.8,3201.7,0.2416]
[1763264611536,18.2968,3202.2,3201.5,0.1414]
[1763264611537,1.26669511,3203.0,3202.1,0.1267]
[1763264611743,0.23983593,3202.6,3202.5,0.1267]
[1763264611930,0.2374,3202.4,3202.3,0.84062161]
[1763264612134,0.147,3202.5,3202.2,0.84062161]
[1763264612135,0.2374,3202.3,3202.2,0.84062161]
[1763264613146,0.2374,3202.2,3202.1,0.96732161]
[1763264613547,0.2374,3202.2,3202.1,0.84062161]
[1763264613742,0.3844,3202.0,3201.9,3.45409021]
[1763264613939,0.147,3202.5,3201.9,4.29471182]
[1763264614339,0.3844,3202.5,3201.9,4.05311182]
[1763264615143,0.3844,3202.0,3201.9,4.29471182]
[1763264617042,0.3844,3202.5,3202.4,0.2416]
[1763264617348,0.3844,3202.0,3201.9,4.29471182]
[1763264617845,0.3844,3202.0,3201.9,3.45409021]
[1763264618253,0.147,3202.5,3201.9,4.29471182]
[1763264618954,0.3844,3202.0,3201.9,3.45409021]
[1763264619251,0.3844,3202.0,3201.9,3.21249021]
[1763264620844,0.3844,3202.0,3201.9,3.45409021]
[1763264621450,0.3844,3202.0,3201.9,3.21249021]
[1763264622051,0.3844,3202.0,3201.9,3.45409021]
[1763264622851,0.3844,3202.0,3201.9,0.00469021]
[1763264623447,0.3844,3201.5,3201.4,4.04842161]
[1763264625859,0.147,3201.5,3201.4,4.29002161]
[1763264626158,0.3844,3201.5,3201.4,4.29002161]
[1763264627350,0.3844,3201.5,3201.4,3.2078]
[1763264628255,0.3844,3201.5,3201.4,3.4494]
[1763264629058,0.3844,3201.5,3201.4,3.2078]
[1763264630662,0.3844,3201.5,3201.4,3.4494]
[1763264637862,0.3844,3201.5,3201.4,0.2416]
[1763264643166,0.3844,3201.5,3201.1,0.00469021]
[1763264643377,0.2371,3201.2,3201.1,0.24639021]
[1763264643670,0.3841,3201.5,3201.4,0.2417]
[1763264644056,0.147,3201.5,3201.4,0.2417]
[1763264644466,4.32809511,3201.9,3201.4,0.2417]
[1763264644980,0.3722,3201.5,3201.4,0.2417]
[1763264645467,0.3722,3201.5,3201.1,0.84531182]
[1763264645468,0.2371,3201.2,3201.1,1.08701182]
[1763264645762,0.2371,3201.2,3201.1,0.00469021]
[1763264646070,0.3722,3201.5,3201.4,0.2417]
[1763264649874,19.83450564,3201.8,3201.7,0.2417]
[1763264650267,19.83450564,3201.8,3201.3,4.04842161]
[1763264650465,0.2371,3201.4,3201.3,3.2078]
[1763264651568,0.2371,3201.4,3201.3,3.4495]
[1763264652867,0.2371,3201.4,3201.3,0.2417]
[1763264654176,0.225,3201.3,3201.2,4.05108574]
[1763264654567,0.225,3201.3,3201.2,4.30018574]
[1763264655170,0.225,3201.3,3201.2,3.4569]
[1763264656668,0.225,3201.3,3201.2,4.05122764]
[1763264657066,0.1351,3201.5,3201.2,4.30032764]
[1763264657360,0.1351,3201.5,3201.3,0.84342764]
[1763264657674,0.1351,3201.5,3201.2,4.30032764]
[1763264657874,0.3601,3201.5,3201.4,0.2491]
[1763264660380,15.4511,3201.5,3201.4,0.2491]
[1763264660873,0.225,3201.3,3201.2,2.75412186]
[1763264661075,0.225,3201.2,3201.1,0.00469021]
[1763264661481,1.91271194,3201.2,3201.1,0.00469021]
[1763264662271,0.225,3201.2,3201.1,0.00469021]
[1763264663073,0.225,3200.6,3200.5,0.84342764]
[1763264663281,15.316,3200.6,3200.5,1.09252764]
[1763264665572,15.091,3200.6,3200.5,1.09252764]
[1763264665773,15.091,3200.6,3200.5,1.22782764]
[1763264666177,15.091,3200.6,3200.5,0.3844]
[1763264667674,0.00469021,3200.9,3200.8,0.2491]
[1763264668380,0.00469021,3200.9,3200.8,3.4569]
[1763264669680,1.12388443,3201.4,3201.3,0.2379]
[1763264669877,0.3609,3201.5,3201.4,0.2379]
[1763264670175,15.4529,3201.5,3201.4,0.2379]
[1763264670376,15.4529,3201.5,3201.1,0.84167585]
[1763264671180,15.4529,3201.5,3201.0,0.84167585]
[1763264671580,16.29496459,3201.5,3200.9,0.84167585]
[1763264671779,16.29496459,3201.5,3201.0,0.84167585]
[1763264672580,0.2258,3201.1,3201.0,1.07957585]
[1763264673479,16.06916459,3201.5,3201.0,1.07957585]
[1763264673782,15.2271,3201.5,3201.0,1.07957585]
[1763264674081,16.06916459,3201.5,3201.0,1.07957585]
[1763264674882,16.29496459,3201.5,3201.4,0.2379]
[1763264675582,16.29496459,3201.5,3201.0,0.91467585]
[1763264675583,16.29496459,3201.5,3201.0,0.84167585]
[1763264675974,15.4529,3201.5,3201.0,0.84167585]
[1763264678573,16.29496459,3201.5,3201.0,0.84167585]
[1763264681287,16.29496459,3201.5,3201.4,0.2379]
[1763264683489,0.8467548,3201.6,3201.4,0.2379]
[1763264683684,0.00469021,3201.6,3201.5,0.2379]
[1763264690193,0.23049021,3201.6,3201.5,0.2379]
[1763264692599,0.2258,3201.4,3201.3,4.04947585]
[1763264692784,0.2258,3201.3,3201.2,0.84167585]
[1763264692986,0.2258,3201.2,3201.1,0.84167585]
[1763264693294,0.2258,3201.1,3201.0,0.84167585]
[1763264693794,0.3608,3201.0,3200.9,4.28737585]
[1763264694297,0.3608,3201.0,3200.9,3.4457]
[1763264698493,0.3608,3201.0,3200.9,4.56793447]
[1763264699098,0.3608,3201.0,3200.9,1.36013447]
[1763264699393,15.089,3201.3,3200.9,4.56793447]
[1763264699696,0.2471,3201.1,3201.0,1.07150304]
[1763264700293,0.2471,3200.9,3200.7,0.84280304]
[1763264700495,0.2471,3201.1,3201.0,0.2287]
[1763264700694,15.3361,3201.1,3201.0,0.2287]
[1763264700891,0.2471,3200.9,3200.8,0.2287]
[1763264701992,15.089,3201.1,3200.7,0.84280304]
[1763264701993,0.2471,3200.8,3200.7,0.84280304]
[1763264702499,0.2471,3200.8,3200.7,1.07150304]
[1763264703199,0.2471,3200.8,3200.7,0.2287]
[1763264703690,0.3894,3201.0,3200.9,0.2287]
[1763264704097,0.2471,3201.0,3200.9,0.2287]
[1763264704300,15.3371,3201.0,3200.9,0.2287]
[1763264704500,0.2471,3201.0,3200.9,0.2287]
[1763264704700,15.3371,3201.0,3200.9,0.2287]
[1763264705294,1.08916459,3201.2,3201.1,0.2287]
[1763264705501,0.00469021,3201.6,3201.5,0.3698]
[1763264707703,0.25179021,3201.6,3201.5,0.3698]
[1763264707902,0.25179021,3201.6,3201.5,0.2287]
[1763264708508,0.25179021,3201.6,3201.5,0.3698]
[1763264709508,0.00469021,3201.6,3201.5,0.3698]
[1763264710203,0.00469021,3201.6,3201.5,1.21187752]
[1763264711007,0.00469021,3201.6,3201.5,0.3698]
[1763264712205,0.00469021,3201.6,3201.5,1.49150328]
[1763264712501,0.00469021,3201.6,3201.5,1.49157851]
[1763264714798,0.00469021,3201.6,3201.5,4.69937851]
[1763264716206,0.00469021,3201.6,3201.5,0.84090005]
[1763264716406,0.2248,3201.2,3201.1,4.04870005]
[1763264716904,0.2248,3201.2,3201.1,3.2078]
[1763264718706,0.2248,3201.2,3201.1,3.4534]
[1763264718909,15.3118,3201.2,3201.1,3.4534]
[1763264719104,0.2248,3201.2,3201.1,3.4534]
[1763264719513,0.2248,3201.2,3201.1,3.2078]
[1763264722913,0.2248,3200.7,3200.6,3.2078]
[1763264723110,0.3741,3200.5,3200.4,1.09002424]
[1763264723511,0.3741,3200.5,3200.4,0.24892597]
[1763264723711,0.2248,3200.5,3200.4,0.24892597]
[1763264726222,3.2078,3200.9,3200.5,0.1473]
[1763264726526,0.2248,3200.6,3200.5,0.3929]
[1763264727727,0.2248,3200.6,3200.5,0.2456]
[1763264730024,0.2248,3200.5,3200.4,0.00332597]
[1763264730334,0.3692,3200.5,3200.4,0.24732597]
[1763264731030,0.3692,3200.5,3200.4,0.00332597]
[1763264733729,0.3692,3200.5,3200.4,0.24732597]
[1763264734228,0.2248,3200.5,3200.4,0.24732597]
[1763264735429,0.3694,3200.5,3200.4,0.00332597]
[1763264736724,0.225,3200.5,3200.4,0.24732597]
[1763264737127,0.3694,3200.5,3200.4,0.24732597]
[1763264737835,0.3694,3200.5,3200.4,0.00332597]
[1763264738234,0.3694,3200.5,3200.4,0.24732597]
[1763264739336,11.228,3200.8,3200.7,0.244]
[1763264742033,0.225,3200.6,3200.5,0.3897]
[1763264743330,11.228,3200.8,3200.7,0.244]
[1763264744835,11.003,3200.8,3200.7,0.244]
[1763264745734,1.06580055,3201.0,3200.9,0.244]
[1763264745933,15.317,3201.0,3200.9,0.244]
[1763264746230,16.15780055,3201.0,3200.9,0.244]
[1763264747236,15.317,3201.0,3200.9,0.244]
[1763264747633,16.15907119,3201.0,3200.9,0.244]
[1763264747833,16.15807119,3201.0,3200.9,0.244]
[1763264750133,1.06707119,3201.1,3201.0,0.244]
[1763264750338,16.15807119,3201.1,3201.0,0.244]
[1763264755638,0.1444,3201.0,3200.7,0.84109827]
[1763264756539,0.225,3200.8,3200.7,1.08509827]
[1763264758141,0.225,3200.8,3200.7,0.84109827]
[1763264758445,0.225,3200.8,3200.7,1.08509827]
[1763264760940,0.2361,3201.0,3200.9,0.2268]
[1763264761742,0.3854,3201.0,3200.9,0.2268]
[1763264761948,0.2361,3201.0,3200.9,0.2268]
[1763264762444,0.2361,3200.8,3200.7,0.84109827]
[1763264762949,0.2361,3200.7,3200.6,4.27569827]
[1763264763642,0.1493,3201.0,3200.6,4.04889827]
[1763264763850,0.3854,3201.0,3200.9,0.2268]
[1763264764348,0.2361,3200.7,3200.6,4.27569827]
[1763264767658,15.3251,3200.7,3200.6,3.2078]
[1763264769352,16.16717119,3200.7,3200.6,3.2078]
[1763264770758,0.3854,3200.5,3200.4,4.05222424]
[1763264772253,1.22747119,3200.5,3200.4,3.21112597]
[1763264777462,1.22747119,3200.5,3200.4,0.00332597]
[1763264777662,1.50928443,3200.5,3200.4,0.00332597]
[1763264778254,0.3854,3200.5,3200.4,0.00332597]
[1763264783069,1.07813317,3200.5,3200.4,0.25202597]
[1763264783368,1.08293317,3200.7,3200.6,0.2487]
[1763264783570,16.17393317,3200.7,3200.6,0.2487]
[1763264784157,15.091,3200.7,3200.6,0.2487]
[1763264787475,3.62801053,3201.0,3200.9,0.2487]
[1763264787672,18.71801053,3201.0,3200.9,0.2487]
[1763264788172,15.3309,3201.0,3200.9,0.2487]
[1763264789973,0.2409,3201.0,3200.9,0.2487]
[1763264790273,14.2929,3201.0,3200.9,0.2487]
[1763264790672,14.4311,3201.0,3200.9,0.2487]
[1763264790972,14.2929,3201.0,3200.9,0.2487]
[1763264793468,14.4311,3201.0,3200.9,0.2487]
[1763264798774,14.4311,3201.0,3200.6,3.2078]
[1763264798976,0.2326,3200.7,3200.6,3.4559]
[1763264799371,0.2326,3200.7,3200.6,3.2078]
[1763264799676,15.3206,3200.7,3200.6,3.2078]
[1763264803184,16.16263317,3200.7,3200.6,3.2078]
[1763264804390,0.3708,3200.5,3200.4,0.00332597]
[1763264807589,0.2326,3200.5,3200.4,0.25142597]
[1763264807981,0.3708,3200.5,3200.4,0.25142597]
[1763264808389,0.3708,3200.5,3200.4,0.00332597]
[1763264811696,0.2326,3200.5,3200.4,0.25142597]
[1763264811997,15.3206,3200.5,3200.4,0.25142597]
[1763264812494,0.2326,3200.5,3200.4,0.25142597]
[1763264812792,15.3206,3200.5,3200.4,0.25142597]
[1763264813793,0.2326,3200.5,3200.4,0.25142597]
[1763264813992,1.12388443,3201.3,3201.2,0.2481]
[1763264814297,0.2326,3201.3,3201.2,3.4559]
[1763264814601,0.2326,3201.3,3201.2,4.2985552]
[1763264814792,0.2326,3201.3,3201.2,4.0504552]
[1763264815200,0.2326,3201.3,3201.2,3.4559]
[1763264815796,0.2326,3201.3,3201.2,3.2078]
[1763264816091,0.3708,3201.0,3200.9,0.8426552]
[1763264816492,0.2326,3200.9,3200.8,3.2078]
[1763264816798,15.3206,3200.9,3200.8,3.2078]
[1763264821394,0.3805,3200.5,3200.4,0.84564201]
[1763264821599,15.4675,3200.5,3200.4,0.00332597]
[1763264823994,0.2356,3200.1,3199.8,0.84231604]
[1763264824195,0.2356,3199.2,3199.1,1.12372303]
[1763264824403,0.2356,3199.1,3199.0,3.3491]
[1763264825092,0.2356,3199.1,3199.0,3.5896]
[1763264825293,0.23893931,3199.1,3199.0,3.59314874]
[1763264825600,0.23893931,3199.1,3199.0,3.35264874]
[1763264826500,3.44673931,3199.1,3199.0,0.00354874]
[1763264827398,0.23893931,3199.1,3199.0,0.00354874]
[1763264828297,0.2356,3198.8,3198.7,0.00469021]
[1763264828607,15.3246,3198.8,3198.7,0.00469021]
[1763264829291,15.3246,3198.8,3198.7,0.00791928]
[1763264830206,0.2356,3198.1,3198.0,0.3141]
[1763264831204,0.2356,3198.1,3198.0,0.31775123]
[1763264831601,0.2356,3198.1,3198.0,0.00365123]
[1763264832803,15.3286,3198.1,3198.0,0.00365123]
[1763264835697,3.38711053,3198.4,3198.3,0.2358]
[1763264835899,16.8776,3198.5,3198.4,0.2358]
[1763264836205,16.8776,3198.5,3198.0,0.15065123]
[1763264836903,0.2378,3198.1,3198.0,0.00365123]
[1763264837106,15.3348,3198.1,3198.0,0.00365123]
[1763264839212,15.3348,3198.1,3198.0,0.15065123]
[1763264839411,15.097,3198.1,3198.0,0.38645123]
[1763264840212,3.2078,3198.5,3198.0,0.38645123]
[1763264840213,3.2078,3198.5,3198.4,0.2358]
[1763264840807,15.098,3198.7,3198.6,0.2358]
[1763264841106,15.3358,3198.7,3198.6,0.2358]
[1763264841502,0.2378,3198.3,3198.2,3.2078]
[1763264841698,15.3368,3198.3,3198.2,0.2358]
[1763264842104,15.099,3198.3,3198.2,0.2358]
[1763264842704,15.099,3198.3,3198.2,3.4436]
[1763264843113,15.3398,3198.8,3198.7,0.2358]
[1763264843811,15.102,3198.8,3198.7,0.2358]
[1763264844914,0.2378,3198.6,3198.5,0.3828]
[1763264845213,0.2378,3198.6,3198.2,3.2078]
[1763264845913,0.2378,3198.6,3198.5,0.3828]
[1763264847012,15.3398,3198.8,3198.7,0.2358]
[1763264847205,15.3398,3198.8,3198.5,0.147]
[1763264847206,0.2378,3198.6,3198.5,0.147]
[1763264847411,0.2378,3198.6,3198.2,3.2078]
[1763264847618,0.2378,3198.1,3198.0,0.15065123]
[1763264847913,0.2378,3198.1,3198.0,0.38645123]
[1763264848915,15.3408,3198.3,3198.2,0.2358]
[1763264849114,0.2327,3198.1,3198.0,0.38415123]
[1763264852624,0.2327,3198.1,3198.0,0.00365123]
[1763264854920,0.2327,3198.1,3198.0,0.37665123]
[1763264855123,15.3357,3198.3,3198.2,0.2335]
[1763264857727,3.2078,3198.6,3198.5,0.373]
[1763264857927,18.3118,3198.6,3198.5,0.373]
[1763264858224,18.5445,3198.6,3198.5,0.373]
[1763264858717,18.5445,3198.6,3198.0,0.14315123]
[1763264859329,18.5445,3198.6,3198.5,0.373]
[1763264860820,15.104,3198.6,3198.5,0.373]
[1763264861226,15.3367,3198.6,3198.5,0.373]
[1763264861423,15.3367,3198.6,3198.5,0.1395]
[1763264861931,15.3367,3198.6,3198.5,0.373]
[1763264864627,15.3367,3198.6,3198.5,0.1395]
[1763264866333,15.3367,3198.6,3198.2,4.33152303]
[1763264866634,0.2327,3198.3,3198.2,3.4413]
[1763264866825,0.2327,3198.3,3198.2,3.2078]
[1763264870031,0.2327,3198.3,3198.2,3.4413]
[1763264870329,15.104,3198.6,3198.2,3.4413]
[1763264870531,0.2327,3198.3,3198.2,3.4413]
[1763264871031,0.2327,3198.3,3198.2,0.2335]
[1763264872638,0.2327,3198.1,3198.0,0.00365123]
[1763264872934,15.3417,3198.1,3198.0,0.00365123]
[1763264878233,15.3417,3198.1,3198.0,0.37665123]
[1763264878638,15.3417,3198.1,3198.0,0.14315123]
[1763264881042,15.3417,3198.1,3198.0,0.38475123]
[1763264882938,15.3417,3198.1,3198.0,0.00365123]
[1763264887354,15.3417,3198.1,3198.0,3.21145123]
[1763264888454,15.3417,3198.1,3198.0,0.00365123]
[1763264891859,0.83917013,3198.3,3198.1,0.2416]
[1763264892066,15.3287,3198.2,3198.1,0.2416]
[1763264892359,0.2247,3197.7,3197.6,2.30055108]
[1763264892952,3.2078,3198.2,3197.6,2.30055108]
[1763264893159,7.57,3198.2,3197.6,2.30055108]
[1763264893358,7.57,3198.2,3197.7,0.84280964]
[1763264894160,10.7778,3198.2,3197.7,0.84280964]
[1763264894358,11.61697013,3198.2,3197.7,0.84280964]
[1763264894557,0.2296,3197.8,3197.7,1.08350964]
[1763264894854,0.2296,3197.7,3197.6,2.06128804]
[1763264895060,0.2296,3197.7,3197.6,2.30198804]
[1763264896053,11.61697013,3198.2,3197.6,2.30198804]
[1763264896252,0.83917013,3198.5,3198.3,0.2407]
[1763264896457,0.2296,3198.5,3198.4,0.2407]
[1763264896651,0.2296,3198.5,3198.2,0.84280964]
[1763264896652,0.2296,3198.3,3198.2,1.08350964]
[1763264904456,0.2296,3198.2,3198.1,0.84280964]
[1763264904969,0.2296,3198.2,3198.1,1.08350964]
[1763264905269,4.04697013,3198.6,3198.1,1.08350964]
[1763264905966,4.27657013,3198.6,3198.5,0.3827]
[1763264906271,18.5404,3198.6,3198.5,0.3827]
[1763264906467,0.2296,3198.2,3198.1,1.08350964]
[1763264907472,18.5404,3198.6,3198.5,0.3827]
[1763264907663,18.5404,3198.6,3198.5,0.142]
[1763264907862,18.5404,3198.6,3198.2,0.84321097]
[1763264909071,0.2296,3198.3,3198.2,1.08391097]
[1763264912672,3.2078,3198.5,3198.2,1.08391097]
[1763264912870,3.438,3198.5,3198.4,0.2294]
[1763264913377,0.2302,3198.3,3198.2,1.07261097]
[1763264914077,3.438,3198.5,3198.4,0.2294]
[1763264916177,3.2078,3198.5,3198.4,0.2294]
[1763264916474,3.438,3198.5,3198.4,0.2294]
[1763264920678,0.83917013,3198.7,3198.6,0.2294]
[1763264920882,3.438,3198.9,3198.8,0.2294]
[1763264921081,16.458,3198.9,3198.8,0.2294]
[1763264922472,15.3292,3198.9,3198.8,0.2294]
[1763264923880,0.00333931,3199.1,3199.0,0.374]
[1763264924679,0.00333931,3199.1,3199.0,3.5818]
[1763264924884,0.00469021,3199.4,3199.3,0.2294]
[1763264925280,0.00469021,3199.4,3199.3,1.07136886]
[1763264926081,0.00794835,3199.4,3199.3,1.07136886]
[1763264926386,0.00794835,3199.4,3199.3,0.2294]
[1763264928284,0.23814835,3199.4,3199.3,0.2294]
[1763264928591,0.23814835,3199.4,3199.1,1.07136886]
[1763264928592,0.2302,3199.2,3199.1,1.07136886]
[1763264929089,0.23814835,3199.4,3199.3,0.2294]
[1763264930588,0.00794835,3199.4,3199.3,0.2294]
[1763264934689,0.23814835,3199.4,3199.3,0.2294]
[1763264935587,0.00794835,3199.4,3199.3,0.2294]
[1763264938686,0.018514,3199.4,3199.3,0.2294]
[1763264939995,0.248714,3199.4,3199.3,0.2294]
[1763264940193,0.243914,3199.4,3199.3,0.2409]
[1763264941091,0.018514,3199.4,3199.3,0.2409]
[1763264943288,0.018514,3199.4,3199.3,1.08286886]
[1763264947187,0.018514,3199.4,3199.3,0.2409]
[1763264948196,9.101,3199.8,3199.7,0.2409]
[1763264949402,9.10481779,3199.8,3199.7,0.2409]
[1763264950815,0.22921779,3199.8,3199.7,0.2409]
[1763264953299,0.22921779,3199.8,3199.7,1.08238336]
[1763264954804,0.00381779,3199.8,3199.7,1.08238336]
[1763264955103,0.00469021,3200.1,3200.0,0.3873]
[1763264955506,0.00469021,3200.1,3200.0,1.51188731]
[1763264955805,0.00469021,3200.1,3200.0,0.3873]
[1763264955994,0.00767802,3200.1,3200.0,0.38984405]
[1763264956190,0.00767802,3200.1,3200.0,1.51382998]
[1763264956903,0.00767802,3200.1,3200.0,0.38984405]
[1763264957302,0.00767802,3200.1,3200.0,1.51339238]
[1763264957912,0.00767802,3200.1,3200.0,4.72119238]
[1763264958210,4.04697013,3200.7,3200.0,3.59764405]
[1763264958409,4.04697013,3200.7,3200.1,0.84238829]
[1763264959210,4.05442166,3200.7,3200.1,0.84238829]
[1763264961209,0.2336,3200.2,3200.1,1.08468829]
[1763264962314,4.05442166,3200.7,3200.1,1.08468829]
[1763264962911,0.2336,3200.6,3200.5,0.3873]
[1763264965501,0.00745153,3200.7,3200.6,0.2423]
[1763264965706,0.24105153,3200.7,3200.6,0.2423]
[1763264968517,0.00745153,3200.7,3200.6,0.2423]
[1763264968724,3.2078,3201.1,3201.0,0.3893]
[1763264969112,3.4436,3201.1,3201.0,0.3893]
[1763264969825,3.44686604,3201.1,3201.0,0.3893]
[1763264970119,3.21106604,3201.1,3201.0,0.3893]
[1763264970525,3.44686604,3201.1,3201.0,0.1426]
[1763264971911,3.44686604,3201.1,3200.6,0.8414415]
[1763264973823,3.44686604,3201.1,3201.0,0.1426]
[1763264974131,3.21106604,3201.1,3201.0,0.3893]
[1763264976228,0.00326604,3201.1,3201.0,0.3893]
[1763264976531,0.00326604,3201.1,3201.0,3.5971]
[1763264980041,0.23906604,3201.1,3201.0,3.5971]
[1763264980837,0.00326604,3201.1,3201.0,3.5971]
[1763264985642,0.00469021,3201.4,3201.3,0.2467]
[1763264986745,0.00709895,3201.4,3201.3,0.2467]
[1763264989236,1.07497013,3202.3,3202.2,0.2467]
[1763264989442,3.4436,3202.4,3202.3,0.2467]
[1763264990347,3.21072812,3202.4,3202.3,0.24918191]
[1763264990947,3.44652812,3202.4,3202.3,0.24918191]
[1763264994153,3.21072812,3202.4,3202.3,0.24918191]
[1763264995952,0.00292812,3202.4,3202.3,0.24918191]
[1763264996652,0.00292812,3202.4,3202.3,1.08974715]
[1763264997045,0.00469021,3202.7,3202.6,0.2467]
[1763264997945,0.00731753,3202.7,3202.6,0.2467]
[1763264999444,0.83917013,3203.6,3202.6,0.2467]
[1763264999445,3.2078,3203.2,3202.6,0.2467]
[1763264999650,3.2078,3203.2,3203.1,0.2341]
[1763264999846,3.4532,3203.2,3203.1,0.2341]
[1763265000654,3.45565431,3203.2,3203.1,0.2341]
[1763265001253,0.2454,3202.9,3202.8,0.00469021]
[1763265001755,0.2454,3202.4,3202.3,0.00248191]
[1763265002050,0.2454,3202.4,3201.5,1.82384323]
[1763265002051,0.2454,3201.4,3201.3,0.84056524]
[1763265002243,0.2454,3201.4,3201.1,4.04836524]
[1763265002449,0.2454,3201.4,3201.1,3.2078]
[1763265002950,0.2454,3201.2,3201.1,3.44565107]
[1763265003152,0.2454,3201.2,3201.1,3.21155107]
[1763265003556,0.2454,3201.2,3201.1,3.44565107]
[1763265005961,0.2454,3201.2,3201.1,3.21155107]
[1763265006160,3.4532,3201.2,3201.1,0.00375107]
[1763265006353,0.2454,3201.0,3200.9,0.00469021]
[1763265006553,0.3628,3201.0,3200.9,0.00469021]
[1763265007460,0.3628,3201.0,3200.9,0.00851272]
[1763265008557,0.3628,3201.0,3200.9,1.272e-05]
[1763265008754,0.2454,3200.1,3200.0,0.1442]
[1763265008958,0.2454,3200.1,3199.7,4.04836524]
[1763265008959,0.2454,3199.8,3199.7,3.2078]
[1763265009364,0.2454,3199.8,3199.7,3.4419]
[1763265009763,0.24830738,3199.8,3199.7,3.44430101]
[1763265010657,0.00290738,3199.8,3199.7,3.44430101]
[1763265012660,3.2078,3200.5,3200.4,0.2341]
[1763265013057,3.4532,3200.5,3200.4,0.2341]
[1763265013660,3.45694254,3200.5,3200.4,0.2341]
[1763265014863,3.21154254,3200.5,3200.4,0.2341]
[1763265015070,0.00374254,3200.5,3200.4,6.2341]
[1763265015767,0.00374254,3200.5,3200.4,0.2341]
[1763265031077,3.2078,3201.0,3200.5,0.1483]
[1763265031279,3.2078,3201.0,3200.5,0.98886524]
[1763265032079,3.21050454,3201.0,3200.5,0.98886524]
[1763265034280,3.21050454,3201.0,3200.6,0.84056524]
[1763265035875,0.2252,3200.7,3200.6,1.08186524]
[1763265036978,3.21050454,3201.0,3200.6,1.08186524]
[1763265040291,3.21050454,3201.0,3200.7,0.84056524]
[1763265040493,0.2252,3200.8,3200.7,1.08186524]
[1763265041689,3.21050454,3201.0,3200.9,0.2413]
[1763265041894,3.43570454,3201.0,3200.9,0.2413]
[1763265042096,3.21050454,3201.0,3200.9,0.2413]
[1763265042496,3.21050454,3201.0,3200.9,1.08186524]
[1763265042890,3.43570454,3201.0,3200.9,1.08186524]
[1763265043089,0.2252,3200.8,3200.7,0.84056524]
[1763265043289,0.1409,3200.7,3200.6,1.36447146]
[1763265044191,0.1409,3200.7,3200.6,0.2413]
[1763265044701,0.83917013,3200.9,3200.6,0.2413]
[1763265045000,0.83917013,3200.9,3200.5,1.82954323]
[1763265045001,0.98007013,3200.9,3200.8,0.84347694]
[1763265053806,4.18787013,3200.9,3200.8,0.84347694]
[1763265057106,0.1409,3200.6,3200.5,0.84347694]
[1763265057409,0.1409,3200.6,3200.1,4.88904323]
[1763265057410,0.1409,3200.3,3200.2,0.84347694]
[1763265058908,4.05166618,3200.5,3200.4,0.2482]
[1763265059209,3.2078,3200.5,3200.4,0.2482]
[1763265060109,0.84386618,3200.6,3200.0,1.26883593]
[1763265060110,0.84386618,3200.6,3200.5,0.3848]
[1763265061911,3.2078,3200.9,3200.6,0.2482]
[1763265062112,3.2078,3200.9,3200.8,0.2482]
[1763265065310,0.00270454,3201.0,3200.9,0.2482]
[1763265068409,0.00270454,3201.0,3200.9,1.09001152]
[1763265068614,0.00270454,3201.0,3200.9,0.2482]
[1763265069208,0.00270454,3201.0,3200.9,1.37283593]
[1763265069404,0.00270454,3201.0,3200.9,0.2482]
[1763265071306,4.05166618,3201.5,3201.4,0.2482]
[1763265071307,3.2078,3201.5,3201.4,0.2482]
[1763265071620,3.3513,3201.5,3201.4,1.08917287]
[1763265072321,3.3513,3201.5,3201.4,0.2482]
[1763265072522,3.35419183,3201.5,3201.4,0.2482]
[1763265075424,3.21069183,3201.5,3201.4,0.2482]
[1763265075924,3.35599183,3201.5,3201.4,0.2482]
[1763265079024,3.21069183,3201.5,3201.4,0.2482]
[1763265082427,3.35599183,3201.5,3201.1,0.84566308]
[1763265083832,3.35599183,3201.5,3201.4,0.2285]
[1763265084627,3.21069183,3201.5,3201.4,0.2285]
[1763265085422,0.00289183,3201.5,3201.4,0.2285]
[1763265089222,0.00289183,3201.5,3201.2,4.04877287]
[1763265089223,0.00289183,3201.5,3201.2,0.83950109]
[1763265089426,0.1435,3201.2,3201.1,0.00469021]
[1763265090936,0.1435,3200.9,3200.8,3.08373882]
[1763265093521,0.1435,3200.9,3200.5,0.14129021]
[1763265093729,0.1435,3200.6,3200.5,0.37979021]
[1763265094435,0.1435,3200.6,3200.5,0.00469021]
[1763265095634,15.2265,3200.6,3200.5,0.00469021]
[1763265100334,15.2265,3200.6,3200.5,0.15359021]
[1763265106048,15.083,3200.6,3200.5,0.39209021]
[1763265106246,15.2265,3200.6,3200.5,0.39209021]
[1763265108854,15.2265,3200.6,3200.5,0.15359021]
[1763265110158,0.1435,3200.6,3200.5,0.15359021]
[1763265110354,15.2295,3200.6,3200.5,0.15359021]
[1763265111850,15.2295,3200.6,3200.5,0.39209021]
[1763265112053,15.086,3200.6,3200.5,0.39209021]
[1763265112464,15.2295,3200.6,3200.5,0.39209021]
[1763265112656,3.2078,3200.7,3200.6,0.2385]
[1763265112657,18.2938,3200.7,3200.6,0.2385]
[1763265114549,4.04922575,3201.1,3200.5,0.15359021]
[1763265114750,13.9283,3201.1,3201.0,0.3874]
[1763265115554,13.9283,3201.1,3201.0,0.1489]
[1763265116461,13.9283,3201.1,3200.5,0.9930913]
[1763265118466,13.9283,3201.1,3200.6,0.83950109]
[1763265120067,0.1435,3200.7,3200.6,0.83950109]
[1763265120268,15.2285,3200.7,3200.6,0.83950109]
[1763265120563,0.1431,3200.6,3200.5,0.00469021]
[1763265121466,0.1431,3200.6,3200.5,0.15009021]
[1763265124874,0.84142575,3200.9,3200.8,0.2317]